bitfinex/quotes_BTCUSD_20240908
["timestamp","ask_amount","ask_price","bid_price","bid_amount"]
[1725768193111,0.128296,54561.0,54560.0,0.07083]
[1725768194031,0.128296,54561.0,54560.0,0.06983]
[1725768194273,0.15703571,54562.0,54560.0,0.06983]
[1725768194505,0.128296,54561.0,54560.0,0.06983]
[1725768196080,0.128296,54561.0,54560.0,0.07283]
[1725768198557,0.02874122,54561.0,54560.0,0.07283]
[1725768202478,0.0891694,54565.0,54560.0,0.07283]
[1725768202700,0.128292,54563.0,54560.0,0.07283]
[1725768202938,0.15703374,54563.0,54560.0,0.07283]
[1725768203437,0.15703374,54563.0,54560.0,0.06983]
[1725768204121,0.15703374,54563.0,54560.0,0.06783]
[1725768205224,0.2174584,54565.0,54560.0,0.196128]
[1725768205444,0.12829,54564.0,54560.0,0.197128]
[1725768206092,0.12829,54564.0,54560.0,0.196128]
[1725768207175,0.12929,54564.0,54560.0,0.129928]
[1725768207487,0.12929,54564.0,54561.0,0.0636]
[1725768208402,0.12829,54564.0,54561.0,0.0636]
[1725768208618,0.15703159,54564.0,54561.0,0.0636]
[1725768208839,0.15803159,54564.0,54561.0,0.0636]
[1725768211958,0.02974159,54564.0,54563.0,0.128292]
[1725768212178,0.02974159,54564.0,54563.0,0.268792]
[1725768213092,0.02874159,54564.0,54563.0,0.268792]
[1725768213546,0.02874159,54564.0,54563.0,0.525376]
[1725768213771,0.02974159,54564.0,54563.0,0.525376]
[1725768215391,0.001,54564.0,54563.0,0.525376]
[1725768218551,0.02974097,54564.0,54563.0,0.525376]
[1725768219215,0.02974097,54564.0,54563.0,0.268792]
[1725768220102,0.02974097,54564.0,54563.0,0.525376]
[1725768223565,0.03055597,54564.0,54563.0,0.525376]
[1725768225362,0.001815,54564.0,54563.0,0.525376]
[1725768228772,0.03055599,54564.0,54563.0,0.525376]
[1725768233966,0.03055599,54564.0,54563.0,0.268792]
[1725768234172,0.03055599,54564.0,54563.0,0.525376]
[1725768235327,0.001815,54564.0,54563.0,0.525376]
[1725768236170,0.001815,54564.0,54563.0,0.527006]
[1725768236389,0.001815,54564.0,54563.0,0.270422]
[1725768237449,0.001815,54564.0,54563.0,0.527006]
[1725768239005,0.03055577,54564.0,54563.0,0.270422]
[1725768239906,0.03055577,54564.0,54563.0,0.527006]
[1725768240998,0.03055577,54564.0,54563.0,0.270422]
[1725768245158,0.03055577,54564.0,54563.0,0.527006]
[1725768245425,0.001815,54564.0,54563.0,0.527006]
[1725768248995,0.03055577,54564.0,54563.0,0.527006]
[1725768251778,0.03055577,54564.0,54563.0,0.14213]
[1725768252227,0.03055577,54564.0,54563.0,0.06523]
[1725768252671,0.03055577,54564.0,54563.0,0.193522]
[1725768254795,0.15884477,54564.0,54563.0,0.06523]
[1725768255242,0.15884477,54564.0,54563.0,0.00163]
[1725768255463,0.130104,54564.0,54563.0,0.00163]
[1725768258635,0.15884549,54564.0,54563.0,0.00163]
[1725768262307,0.11972589,54564.0,54563.0,0.00163]
[1725768263458,0.24801489,54564.0,54563.0,0.00163]
[1725768265058,0.24812179,54564.0,54563.0,0.00163]
[1725768265276,0.2193803,54564.0,54563.0,0.00163]
[1725768265497,0.128296,54561.0,54560.0,0.00163]
[1725768265720,0.2174654,54561.0,54560.0,0.00163]
[1725768267521,0.2174654,54561.0,54560.0,0.00463]
[1725768267967,0.2174654,54561.0,54560.0,0.00663]
[1725768269276,0.24620789,54561.0,54560.0,0.00663]
[1725768272505,0.24620789,54561.0,54555.0,0.258248]
[1725768272506,0.0808,54560.0,54555.0,0.00163]
[1725768272732,0.128318,54552.0,54550.0,0.5306]
[1725768272957,0.2174864,54553.0,54550.0,0.5306]
[1725768273218,0.128317,54552.0,54550.0,0.5306]
[1725768273435,0.02874519,54553.0,54550.0,0.658921]
[1725768273661,0.0891694,54551.0,54550.0,0.658921]
[1725768273887,0.0891694,54551.0,54550.0,0.189721]
[1725768274103,0.0891694,54551.0,54550.0,0.202721]
[1725768275404,0.0891694,54551.0,54550.0,0.0744]
[1725768276344,0.2174894,54551.0,54550.0,0.027]
[1725768277465,0.0891694,54551.0,54550.0,0.027]
[1725768278377,0.2174894,54551.0,54550.0,0.027]
[1725768279039,0.0891694,54551.0,54550.0,0.0884]
[1725768280899,0.0891694,54551.0,54550.0,0.027]
[1725768280900,0.4741294,54551.0,54550.0,0.027]
[1725768281178,0.50287619,54551.0,54550.0,0.027]
[1725768281850,0.50287619,54551.0,54550.0,0.014]
[1725768282301,0.50087619,54551.0,54550.0,0.01563]
[1725768282539,0.50087619,54551.0,54550.0,0.00163]
[1725768282980,0.49787619,54551.0,54550.0,0.00163]
[1725768283201,0.49887619,54551.0,54550.0,0.00163]
[1725768284107,0.49898309,54551.0,54550.0,0.00163]
[1725768284546,0.50398309,54551.0,54550.0,0.00163]
[1725768287517,0.50398309,54551.0,54547.0,0.0614]
[1725768287518,0.0891694,54548.0,54547.0,0.01695558]
[1725768288232,0.128332,54546.0,54544.0,0.0756]
[1725768288472,0.2175034,54545.0,54544.0,0.0756]
[1725768289366,0.2462535,54545.0,54544.0,0.0756]
[1725768289589,0.2175034,54545.0,54544.0,0.0756]
[1725768289824,0.2175034,54545.0,54541.0,0.204143]
[1725768290317,0.0891694,54542.0,54541.0,0.204143]
[1725768290540,0.0891694,54542.0,54541.0,0.266143]
[1725768292416,0.2175104,54542.0,54541.0,0.1398]
[1725768292660,0.7308744,54542.0,54540.0,0.00163]
[1725768292887,0.38503,54541.0,54540.0,0.00163]
[1725768293129,0.636717,54541.0,54540.0,0.00163]
[1725768294520,0.40878326,54541.0,54540.0,0.00163]
[1725768294754,0.38003,54541.0,54540.0,0.00163]
[1725768294993,0.123343,54541.0,54540.0,0.00163]
[1725768295292,0.123343,54541.0,54540.0,0.00263]
[1725768295530,0.123343,54541.0,54540.0,0.00163]
[1725768295764,0.38003,54541.0,54540.0,0.06463]
[1725768295983,0.38403,54541.0,54540.0,0.06463]
[1725768296248,0.38503,54541.0,54540.0,0.06463]
[1725768296467,0.38103,54541.0,54540.0,0.06363]
[1725768296706,0.38503,54541.0,54540.0,0.06363]
[1725768296910,0.38603,54541.0,54540.0,0.06363]
[1725768297787,0.41478276,54541.0,54540.0,0.06363]
[1725768298689,0.38603,54541.0,54540.0,0.06363]
[1725768301915,0.41478274,54541.0,54540.0,0.06363]
[1725768302576,0.15809574,54541.0,54540.0,0.06363]
[1725768302797,0.41478274,54541.0,54540.0,0.06363]
[1725768303045,0.15809574,54541.0,54540.0,0.06363]
[1725768303272,0.03475274,54541.0,54540.0,0.524268]
[1725768304191,0.03275274,54541.0,54540.0,0.524268]
[1725768304408,0.02975274,54541.0,54540.0,0.524268]
[1725768304622,0.02975274,54541.0,54540.0,0.78096]
[1725768305293,0.005,54541.0,54540.0,0.78096]
[1725768305758,0.02631463,54542.0,54541.0,0.38503]
[1725768305979,0.02631463,54542.0,54541.0,0.44863]
[1725768306202,0.11618995,54545.0,54544.0,0.128336]
[1725768306426,0.11618995,54545.0,54544.0,0.191936]
[1725768307750,0.11718995,54545.0,54544.0,0.191936]
[1725768308626,0.14594117,54545.0,54544.0,0.191936]
[1725768309128,0.14994117,54545.0,54544.0,0.0636]
[1725768309340,0.12118995,54545.0,54544.0,0.0636]
[1725768311955,0.14994113,54545.0,54544.0,0.0636]
[1725768315279,0.12118995,54545.0,54544.0,0.0636]
[1725768318480,0.12200595,54545.0,54544.0,0.0636]
[1725768321180,0.15075586,54545.0,54544.0,0.0636]
[1725768323180,0.06158646,54545.0,54544.0,0.528609]
[1725768324016,0.06058646,54545.0,54544.0,0.528609]
[1725768324239,0.05658646,54545.0,54544.0,0.528609]
[1725768324462,0.06158646,54545.0,54544.0,0.528609]
[1725768324701,0.06058646,54545.0,54544.0,0.528609]
[1725768325403,0.03183655,54545.0,54544.0,0.528609]
[1725768325874,0.02783655,54545.0,54544.0,0.528609]
[1725768326080,0.02883655,54545.0,54544.0,0.528609]
[1725768326351,0.02783655,54545.0,54544.0,0.528609]
[1725768326780,0.02783655,54545.0,54544.0,0.529609]
[1725768328748,0.05658585,54545.0,54544.0,0.529609]
[1725768329178,0.05658585,54545.0,54544.0,0.786282]
[1725768329391,0.05658585,54545.0,54544.0,0.529609]
[1725768331197,0.05658585,54545.0,54544.0,0.786282]
[1725768331637,0.07106039,54545.0,54544.0,0.786282]
[1725768332078,0.05658585,54545.0,54544.0,0.786282]
[1725768333824,0.07106039,54545.0,54544.0,0.786282]
[1725768335356,0.04231109,54545.0,54544.0,0.786282]
[1725768338679,0.0710594,54545.0,54544.0,0.272936]
[1725768338893,0.0710594,54545.0,54544.0,0.129336]
[1725768339352,0.0710594,54545.0,54544.0,0.001]
[1725768339569,0.0710594,54545.0,54544.0,0.129336]
[1725768340872,0.0710594,54545.0,54544.0,0.12480761]
[1725768342216,0.0710594,54545.0,54542.0,0.321681]
[1725768342435,0.0710594,54545.0,54544.0,0.128336]
[1725768342646,0.1602288,54545.0,54544.0,0.128336]
[1725768343518,0.0710594,54545.0,54544.0,0.128336]
[1725768343737,0.1602288,54545.0,54544.0,0.128336]
[1725768344190,0.1602288,54545.0,54542.0,0.321681]
[1725768344444,0.13148049,54545.0,54544.0,0.128336]
[1725768347137,0.04231109,54545.0,54544.0,0.128336]
[1725768347351,0.13148049,54545.0,54544.0,0.189136]
[1725768348029,0.256646,54550.0,54544.0,0.189136]
[1725768348252,0.10544805,54545.0,54544.0,0.189136]
[1725768348483,0.0891694,54545.0,54544.0,0.189136]
[1725768349819,0.10544805,54545.0,54544.0,0.189136]
[1725768350475,0.10544805,54545.0,54544.0,0.190136]
[1725768352736,0.10544805,54545.0,54544.0,0.269336]
[1725768352954,0.10544805,54545.0,54544.0,0.141]
[1725768353388,0.10544805,54545.0,54544.0,0.14263]
[1725768354256,0.13419686,54545.0,54544.0,0.14263]
[1725768355372,0.10544805,54545.0,54544.0,0.14263]
[1725768361116,0.13419684,54545.0,54544.0,0.14263]
[1725768364841,0.26253084,54545.0,54544.0,0.06343]
[1725768365057,0.26253084,54545.0,54544.0,0.00263]
[1725768365338,0.23378205,54545.0,54544.0,0.00263]
[1725768365545,0.01627865,54545.0,54544.0,0.00263]
[1725768365769,0.10544805,54545.0,54544.0,0.00263]
[1725768366913,0.10544805,54545.0,54544.0,0.06733]
[1725768368868,0.1341973,54545.0,54544.0,0.06733]
[1725768371371,0.2625313,54545.0,54544.0,0.00263]
[1725768372023,0.23378205,54545.0,54544.0,0.00263]
[1725768373966,0.14461265,54545.0,54544.0,0.00263]
[1725768374180,0.23378205,54545.0,54544.0,0.00263]
[1725768375075,0.26253143,54545.0,54544.0,0.00263]
[1725768375296,0.23378205,54545.0,54544.0,0.00263]
[1725768376631,0.14461265,54545.0,54544.0,0.00263]
[1725768376848,0.23378205,54545.0,54544.0,0.00263]
[1725768378180,0.25666,54547.0,54544.0,0.00263]
[1725768378443,0.10804212,54545.0,54544.0,0.00263]
[1725768378640,0.08954156,54545.0,54544.0,0.00263]
[1725768378856,0.08954156,54545.0,54544.0,0.06733]
[1725768379103,0.00037216,54545.0,54544.0,0.06733]
[1725768379329,0.00037216,54545.0,54544.0,0.06633]
[1725768379549,0.03274903,54547.0,54544.0,0.335503]
[1725768379770,0.03074903,54547.0,54546.0,0.193032]
[1725768380006,0.02874903,54547.0,54546.0,0.526896]
[1725768380755,0.12832,54551.0,54548.0,0.0647]
[1725768381040,0.12832,54551.0,54548.0,0.0627]
[1725768381739,0.2174864,54553.0,54549.0,0.128324]
[1725768381967,0.2174864,54553.0,54549.0,0.126324]
[1725768382639,0.2174864,54553.0,54550.0,0.128322]
[1725768382640,0.0891694,54553.0,54550.0,0.128322]
[1725768382884,0.002,54551.0,54550.0,0.64161]
[1725768383335,0.1891694,54557.0,54555.0,0.076]
[1725768383589,0.1891694,54557.0,54555.0,0.072]
[1725768383823,0.1891694,54557.0,54556.0,0.0635]
[1725768384307,0.1,54557.0,54556.0,0.0635]
[1725768384564,0.047215,54564.0,54560.0,0.384897]
[1725768384565,0.000815,54561.0,54560.0,0.384897]
[1725768384810,0.000815,54561.0,54560.0,0.448397]
[1725768385525,0.01973767,54561.0,54560.0,0.448397]
[1725768385756,0.00138738,54561.0,54560.0,0.191799]
[1725768385989,0.01973767,54561.0,54560.0,0.191799]
[1725768386218,0.00138738,54561.0,54560.0,0.191799]
[1725768386450,0.01973767,54561.0,54560.0,0.199799]
[1725768386712,0.02851333,54561.0,54560.0,0.798995]
[1725768386954,0.04686362,54561.0,54560.0,1.055593]
[1725768387215,0.02794095,54561.0,54560.0,1.055593]
[1725768388401,0.02794095,54561.0,54560.0,1.304191]
[1725768388646,0.02794095,54561.0,54560.0,1.308191]
[1725768389141,0.02794095,54561.0,54560.0,1.304191]
[1725768389376,0.02794095,54561.0,54560.0,1.308191]
[1725768389609,0.02794095,54561.0,54560.0,1.322191]
[1725768389841,0.02794095,54561.0,54560.0,1.30320849]
[1725768390074,0.02794095,54561.0,54560.0,1.04661049]
[1725768390307,0.02794095,54561.0,54560.0,1.07461049]
[1725768391524,0.02794095,54561.0,54560.0,1.33120849]
[1725768393178,0.02794095,54561.0,54560.0,1.07461049]
[1725768400455,0.128267,54574.0,54570.0,0.128275]
[1725768400692,0.256521,54577.0,54570.0,0.128275]
[1725768400923,0.10834622,54573.0,54569.0,0.128277]
[1725768401161,0.2174394,54573.0,54569.0,0.128277]
[1725768401398,0.0891694,54573.0,54569.0,0.128277]
[1725768401855,0.0891694,54573.0,54570.0,0.143275]
[1725768402091,0.2174374,54573.0,54570.0,0.007]
[1725768402319,0.0891694,54573.0,54569.0,0.128277]
[1725768402977,0.01860289,54572.0,54570.0,0.273075]
[1725768403216,0.128266,54574.0,54570.0,0.273075]
[1725768403424,0.01915409,54571.0,54570.0,0.193975]
[1725768403672,0.128266,54574.0,54570.0,0.193975]
[1725768404035,0.00053401,54571.0,54570.0,0.193975]
[1725768404595,0.128266,54574.0,54570.0,0.193975]
[1725768404818,0.00053401,54571.0,54570.0,0.193975]
[1725768405048,0.128266,54574.0,54570.0,0.193975]
[1725768405269,0.00053401,54571.0,54570.0,0.193975]
[1725768405716,0.129266,54574.0,54570.0,0.193975]
[1725768405931,0.00053401,54571.0,54570.0,0.193975]
[1725768406150,0.129266,54574.0,54570.0,0.193975]
[1725768406151,0.128266,54574.0,54570.0,0.193975]
[1725768406377,0.00054752,54573.0,54570.0,0.193975]
[1725768406853,0.00053401,54571.0,54570.0,0.196975]
[1725768407109,0.128266,54574.0,54570.0,0.193975]
[1725768407561,0.00054752,54573.0,54570.0,0.196975]
[1725768407986,0.00054752,54573.0,54570.0,0.193975]
[1725768409294,0.00054752,54573.0,54570.0,0.194975]
[1725768411529,0.00054752,54573.0,54571.0,0.128272]
[1725768412047,0.2174344,54575.0,54571.0,0.128272]
[1725768412260,0.00054077,54572.0,54571.0,0.128272]
[1725768412475,0.24453613,54575.0,54571.0,0.128272]
[1725768412685,0.00054077,54572.0,54571.0,0.128272]
[1725768412896,0.24453613,54575.0,54571.0,0.129272]
[1725768413114,0.00054077,54572.0,54571.0,0.128272]
[1725768413550,0.24453613,54575.0,54571.0,0.130272]
[1725768413761,0.00054077,54572.0,54571.0,0.128272]
[1725768413973,0.24453613,54575.0,54571.0,0.128272]
[1725768414197,0.00054077,54572.0,54571.0,0.128272]
[1725768414454,0.24453613,54575.0,54571.0,0.128272]
[1725768414679,0.00054077,54572.0,54571.0,0.128272]
[1725768414926,0.24653613,54575.0,54571.0,0.128272]
[1725768415398,0.00055427,54574.0,54571.0,0.128272]
[1725768415852,0.00055427,54574.0,54571.0,0.129272]
[1725768417220,0.00055427,54574.0,54571.0,0.128272]
[1725768417469,0.00155427,54574.0,54572.0,0.12827]
[1725768418119,0.01858191,54573.0,54570.0,0.323879]
[1725768418339,0.00056447,54572.0,54571.0,0.128271]
[1725768420622,0.00056447,54572.0,54571.0,0.129271]
[1725768420868,0.00056447,54572.0,54571.0,0.131271]
[1725768427512,0.00056447,54572.0,54571.0,0.132901]
[1725768428200,0.00056447,54572.0,54571.0,0.00463]
[1725768428445,0.00056447,54572.0,54571.0,0.132903]
[1725768430915,0.00056447,54572.0,54571.0,0.00463]
[1725768431132,0.00056447,54572.0,54571.0,0.132903]
[1725768433131,0.0191588,54572.0,54571.0,0.132903]
[1725768435537,0.0191588,54572.0,54571.0,0.00463]
[1725768437244,0.0191588,54572.0,54571.0,0.132903]
[1725768440560,0.0191588,54572.0,54571.0,0.129903]
[1725768440995,0.0211588,54572.0,54571.0,0.129903]
[1725768441221,0.0191588,54572.0,54571.0,0.129903]
[1725768441457,0.0191588,54572.0,54571.0,0.131903]
[1725768442136,0.0201588,54572.0,54571.0,0.131903]
[1725768442598,0.0191588,54572.0,54571.0,0.131903]
[1725768443137,0.0191588,54572.0,54571.0,0.132903]
[1725768444489,0.0191588,54572.0,54571.0,0.00463]
[1725768444972,0.384819,54571.0,54567.0,0.0791]
[1725768445200,0.1083282,54572.0,54560.0,0.01163]
[1725768445201,0.2174494,54568.0,54564.0,0.128289]
[1725768445450,0.0891694,54565.0,54564.0,0.128289]
[1725768445678,0.40399642,54570.0,54565.0,0.128285]
[1725768445904,0.0891694,54566.0,54565.0,0.128285]
[1725768447081,0.0891694,54566.0,54565.0,0.132285]
[1725768447325,0.0891694,54566.0,54565.0,0.013]
[1725768448019,0.0891694,54566.0,54565.0,0.0757]
[1725768448020,0.10776026,54566.0,54565.0,0.0757]
[1725768448476,0.10776026,54566.0,54565.0,0.0717]
[1725768448712,0.10776026,54566.0,54565.0,0.0797]
[1725768449189,0.10833161,54566.0,54565.0,0.0797]
[1725768449891,0.23661661,54566.0,54565.0,0.0797]
[1725768450363,0.26315846,54566.0,54565.0,0.0797]
[1725768452487,0.26315846,54566.0,54565.0,0.017]
[1725768452940,0.26315846,54566.0,54565.0,0.01863]
[1725768454535,0.13487346,54566.0,54565.0,0.01863]
[1725768456634,0.26315846,54566.0,54565.0,0.01863]
[1725768459565,0.128288,54565.0,54563.0,0.0627]
[1725768460006,0.00052677,54564.0,54563.0,0.0627]
[1725768460962,0.00052677,54564.0,54563.0,0.0727]
[1725768461215,0.001,54565.0,54563.0,0.0717]
[1725768461431,0.001,54565.0,54563.0,0.199992]
[1725768461659,0.00053046,54564.0,54563.0,0.190992]
[1725768462118,0.001,54564.0,54563.0,0.211992]
[1725768462361,0.00153046,54564.0,54563.0,0.211992]
[1725768462582,0.00053046,54564.0,54563.0,0.201992]
[1725768462825,0.00053046,54564.0,54563.0,0.210992]
[1725768463039,0.01833414,54564.0,54563.0,0.210992]
[1725768463261,0.01833414,54564.0,54563.0,0.199992]
[1725768463740,0.01886091,54564.0,54563.0,0.205992]
[1725768463936,0.01886091,54564.0,54563.0,0.199992]
[1725768464188,0.01886091,54564.0,54563.0,0.190992]
[1725768464417,0.02186091,54564.0,54563.0,0.190992]
[1725768464637,0.02186091,54564.0,54563.0,0.192622]
[1725768472607,0.02186091,54564.0,54563.0,0.270622]
[1725768476987,0.256528,54575.0,54563.0,0.14233]
[1725768477219,0.01886787,54564.0,54563.0,0.527206]
[1725768477440,0.00040922,54564.0,54563.0,0.527206]
[1725768478124,0.01573033,54564.0,54563.0,0.527206]
[1725768478344,0.01573033,54564.0,54563.0,0.528206]
[1725768480138,0.01573033,54564.0,54563.0,0.527206]
[1725768480635,0.01673033,54564.0,54563.0,0.527206]
[1725768482219,0.256549,54571.0,54564.0,0.256574]
[1725768482449,0.0891694,54567.0,54566.0,0.128285]
[1725768483329,0.2404454,54570.0,54566.0,0.128285]
[1725768484203,0.004,54567.0,54566.0,0.128285]
[1725768484655,0.004,54567.0,54566.0,0.130285]
[1725768485106,0.2404454,54570.0,54567.0,0.128282]
[1725768485329,0.2404454,54570.0,54567.0,0.123282]
[1725768485747,0.00034437,54569.0,54567.0,0.123282]
[1725768486839,0.00034437,54569.0,54567.0,0.124282]
[1725768487486,0.00034437,54569.0,54567.0,0.119282]
[1725768487709,0.00034437,54569.0,54567.0,0.120282]
[1725768487710,0.00734437,54569.0,54567.0,0.120282]
[1725768487965,0.01434437,54569.0,54567.0,0.121282]
[1725768488154,0.01434437,54569.0,54568.0,0.27148]
[1725768489282,0.01434437,54569.0,54568.0,0.7846]
[1725768489283,0.00734437,54569.0,54568.0,0.7846]
[1725768489752,0.000815,54570.0,54569.0,0.528032]
[1725768489967,0.01392714,54570.0,54569.0,0.528032]
[1725768490869,0.01392714,54570.0,54569.0,0.522032]
[1725768491528,0.01792714,54570.0,54569.0,0.524032]
[1725768492029,0.01792714,54570.0,54569.0,0.780587]
[1725768492283,0.01392714,54570.0,54569.0,0.779587]
[1725768492499,0.01792714,54570.0,54569.0,0.780587]
[1725768492716,0.004815,54570.0,54569.0,0.779587]
[1725768492935,0.004815,54570.0,54569.0,0.780587]
[1725768493163,0.008815,54570.0,54569.0,0.780587]
[1725768493628,0.004815,54570.0,54569.0,0.779587]
[1725768494060,0.008815,54570.0,54569.0,0.779587]
[1725768494525,0.000815,54570.0,54569.0,0.778587]
[1725768494747,0.000815,54570.0,54569.0,0.782587]
[1725768495421,0.000815,54570.0,54569.0,0.787587]
[1725768497562,0.01392453,54570.0,54569.0,0.787587]
[1725768499153,0.01392453,54570.0,54569.0,0.531032]
[1725768502052,0.01392453,54570.0,54569.0,0.532662]
[1725768509302,0.06185604,54570.0,54569.0,0.532662]
[1725768515524,0.03311815,54570.0,54569.0,0.532662]
[1725768516660,0.02948221,54570.0,54569.0,0.532662]
[1725768516900,0.02973032,54570.0,54569.0,0.532662]
[1725768519489,0.05846836,54570.0,54569.0,0.532662]
[1725768525505,0.02973032,54570.0,54569.0,0.532662]
[1725768525976,0.03054532,54570.0,54569.0,0.532662]
[1725768529410,0.05928345,54570.0,54569.0,0.532662]
[1725768530687,0.05928345,54570.0,54569.0,0.276107]
[1725768530922,0.05928345,54570.0,54569.0,0.267107]
[1725768531199,0.06228345,54570.0,54569.0,0.267107]
[1725768531672,0.05928345,54570.0,54569.0,0.267107]
[1725768531904,0.05928345,54570.0,54569.0,0.270107]
[1725768532127,0.05928345,54570.0,54569.0,0.526662]
[1725768533079,0.05928345,54570.0,54569.0,0.529662]
[1725768535294,0.03054532,54570.0,54569.0,0.529662]
[1725768538739,0.05928337,54570.0,54569.0,0.529662]
[1725768545422,0.03054532,54570.0,54569.0,0.529662]
[1725768548725,0.0592821,54570.0,54569.0,0.529662]
[1725768552978,0.0592821,54570.0,54569.0,0.786217]
[1725768555389,0.03054532,54570.0,54569.0,0.786217]
[1725768558563,0.05928318,54570.0,54569.0,0.273107]
[1725768559225,0.05928318,54570.0,54569.0,0.529662]
[1725768559452,0.13842978,54575.0,54569.0,0.15083]
[1725768559683,0.13842978,54575.0,54572.0,0.12827]
[1725768559684,0.01090674,54574.0,54572.0,0.12827]
[1725768559900,0.10007614,54574.0,54572.0,0.12827]
[1725768561077,0.10107614,54574.0,54572.0,0.12827]
[1725768562446,0.10189114,54574.0,54572.0,0.12827]
[1725768563112,0.10389114,54574.0,54572.0,0.12827]
[1725768563605,0.10389114,54574.0,54573.0,0.128268]
[1725768564512,0.10189114,54574.0,54572.0,0.193469]
[1725768564750,0.10089114,54574.0,54572.0,0.193469]
[1725768564989,0.10389114,54574.0,54572.0,0.193469]
[1725768565457,0.10089114,54574.0,54572.0,0.193469]
[1725768565688,0.10189114,54574.0,54572.0,0.193469]
[1725768565930,0.10389114,54574.0,54572.0,0.193469]
[1725768566912,0.10389114,54574.0,54573.0,0.128268]
[1725768567790,0.10189114,54574.0,54573.0,0.128268]
[1725768568005,0.10089114,54574.0,54573.0,0.128268]
[1725768568229,0.10289114,54574.0,54573.0,0.128268]
[1725768568444,0.10389114,54574.0,54573.0,0.128268]
[1725768568695,0.1326281,54574.0,54573.0,0.128268]
[1725768568919,0.1326281,54574.0,54572.0,0.19347]
[1725768570294,0.1316281,54574.0,54572.0,0.19347]
[1725768570506,0.1326281,54574.0,54572.0,0.19347]
[1725768570976,0.1306281,54574.0,54572.0,0.19347]
[1725768571241,0.1326281,54574.0,54573.0,0.128268]
[1725768571483,0.1326281,54574.0,54573.0,0.12820872]
[1725768571918,0.1306281,54574.0,54573.0,0.12820872]
[1725768572366,0.1326281,54574.0,54573.0,0.12820872]
[1725768573262,0.1316281,54574.0,54573.0,0.12820872]
[1725768573491,0.1326281,54574.0,54573.0,0.12820872]
[1725768574611,0.0434587,54574.0,54573.0,0.12983872]
[1725768575360,0.03391536,54574.0,54573.0,0.12983872]
[1725768577652,0.03391536,54574.0,54573.0,0.78511272]
[1725768577890,0.03381688,54574.0,54573.0,1.05164972]
[1725768578123,0.02300862,54574.0,54573.0,1.05164972]
[1725768578781,0.02100862,54574.0,54573.0,1.05164972]
[1725768579245,0.02300862,54574.0,54573.0,1.05164972]
[1725768580135,0.02200862,54574.0,54573.0,1.05164972]
[1725768580353,0.02300862,54574.0,54573.0,1.05164972]
[1725768580579,0.02100862,54574.0,54573.0,1.05164972]
[1725768580791,0.02000862,54574.0,54573.0,1.05164972]
[1725768581003,0.02000862,54574.0,54573.0,1.06664972]
[1725768581224,0.02000862,54574.0,54573.0,0.81011272]
[1725768581475,0.02000862,54574.0,54573.0,0.80011272]
[1725768586942,0.01500862,54574.0,54573.0,0.80011272]
[1725768587165,0.02697567,54576.0,54575.0,0.38479]
[1725768587390,0.03789732,54576.0,54575.0,0.38479]
[1725768587613,0.01092165,54576.0,54575.0,0.38479]
[1725768589281,0.01092165,54576.0,54575.0,0.45249]
[1725768590229,0.01092165,54576.0,54575.0,0.45849]
[1725768593518,0.01092165,54576.0,54575.0,0.53969]
[1725768598736,0.01092165,54576.0,54575.0,0.796217]
[1725768599885,0.01092165,54576.0,54575.0,0.53969]
[1725768600104,0.01173665,54576.0,54575.0,0.53969]
[1725768605933,0.01173665,54576.0,54575.0,0.796217]
[1725768606185,0.01173665,54576.0,54575.0,0.796337]
[1725768606420,0.000815,54576.0,54575.0,0.796337]
[1725768608325,0.000815,54576.0,54575.0,1.062864]
[1725768608567,0.000815,54576.0,54575.0,1.319391]
[1725768608805,0.000815,54576.0,54575.0,1.062864]
[1725768609605,0.000815,54576.0,54575.0,1.056864]
[1725768609825,0.000815,54576.0,54575.0,1.066864]
[1725768610043,0.000815,54576.0,54575.0,1.056864]
[1725768610257,0.000815,54576.0,54575.0,1.065864]
[1725768610690,0.000815,54576.0,54575.0,1.069864]
[1725768611154,0.000815,54576.0,54575.0,1.065864]
[1725768611611,0.000815,54576.0,54575.0,1.077864]
[1725768623814,0.000815,54576.0,54575.0,0.933964]
[1725768624746,0.000815,54576.0,54575.0,0.41091]
[1725768624967,0.0899844,54576.0,54575.0,0.154383]
[1725768625428,0.000815,54576.0,54575.0,0.154383]
[1725768625655,0.000815,54576.0,54575.0,0.41091]
[1725768626112,0.01186038,54576.0,54575.0,0.41091]
[1725768626339,0.00107207,54576.0,54575.0,0.41091]
[1725768627577,0.00107207,54576.0,54575.0,0.154383]
[1725768627993,0.00107207,54576.0,54575.0,0.41091]
[1725768628452,0.01186038,54576.0,54575.0,0.41091]
[1725768628678,0.00107207,54576.0,54575.0,0.41091]
[1725768628898,0.01186038,54576.0,54575.0,0.41091]
[1725768629117,0.00107207,54576.0,54575.0,0.41091]
[1725768629335,0.01186038,54576.0,54575.0,0.41091]
[1725768629558,0.00107207,54576.0,54575.0,0.41091]
[1725768629768,0.01186038,54576.0,54575.0,0.41091]
[1725768629987,0.09024147,54576.0,54575.0,0.02612]
[1725768630210,0.10102978,54576.0,54575.0,0.02612]
[1725768630420,0.10102978,54576.0,54575.0,0.154383]
[1725768631731,0.11057977,54576.0,54575.0,0.154383]
[1725768631958,0.13931173,54576.0,54575.0,0.154383]
[1725768632186,0.54839573,54576.0,54575.0,0.02612]
[1725768632408,0.38479,54575.0,54574.0,0.00163]
[1725768632625,0.40535515,54575.0,54574.0,0.00163]
[1725768633543,0.49452455,54575.0,54574.0,0.00163]
[1725768633761,0.75105155,54575.0,54574.0,0.00163]
[1725768633984,0.49452455,54575.0,54574.0,0.00163]
[1725768634419,0.49452455,54575.0,54574.0,0.00263]
[1725768635057,0.49852455,54575.0,54574.0,0.00263]
[1725768636230,0.49852455,54575.0,54574.0,0.00163]
[1725768636684,0.50252455,54575.0,54574.0,0.00163]
[1725768637372,0.75905155,54575.0,54574.0,0.00163]
[1725768637604,0.75924207,54575.0,54574.0,0.00163]
[1725768637853,0.63097907,54575.0,54574.0,0.00163]
[1725768638567,0.50271507,54575.0,54574.0,0.00163]
[1725768638818,0.50271507,54575.0,54569.0,0.00163]
[1725768638819,0.4031874,54575.0,54569.0,0.00163]
[1725768639061,0.0891694,54570.0,54569.0,0.00163]